[Event "Condigne Dutch Open 2018"]
[Site "Dieren"]
[Date "2018.07.30"]
[Round "6"]
[White "Evengroen, Henk-Jan"]
[Black "Zwirs, Jasper"]
[Result "1-0"]
[ECO "D52"]
[WhiteElo "2160"]
[BlackElo "2124"]
[Annotator "NA"]
[PlyCount "43"]
[EventDate "2018.07.24"]
[EventType "swiss"]
[EventCountry "NED"]
[SourceTitle "playchess.com"]
[Source "ChessBase"]
[SourceQuality "1"]
[TimeControl "40/5400+30:1800+30"]

1. d4 {[%emt 0:00:00]} d5 {[%emt 0:00:00]} 2. c4 {[%emt 0:00:00]} c6 {[%emt 0:00:00]} 3. Nc3 {[%emt 0:00:00]} Nf6 {[%emt 0:00:00]} 4. Nf3 {[%emt 0:00:00]} e6 {[%emt 0:00:00]} 5. Bg5 {[%emt 0:00:00]} Nbd7 {[%emt 0:00:00]} 6. e3 {[%emt 0:00:38]} Qa5 {[%emt 0:00:05]} 7. cxd5 {[%emt 0:01:38]} exd5 {[%emt 0:05:27]} 8. Nd2 {[%emt 0:08:03]} Bd6 {[%emt 0:09:57]} 9. Bd3 {[%emt 0:03:35]} O-O {[%emt 0:06:17]} 10. O-O {[%emt 0:00:04]} Qc7 {[%emt 0:04:33]} 11. f4 {[%emt 0:06:52]} b5 {[%emt 0:22:19]} 12. Rc1 {[%emt 0:02:49]} b4 {[%emt 0:09:15]} 13. Nb5 {[%emt 0:00:44]} Qb8 {[%emt 0:00:03]} 14. Rxc6 {[%emt 0:01:27]} Be7 {[%emt 0:01:03]} 15. Nc7 {[%emt 0:01:39]} Bb7 {[%emt 0:09:04]} 16. Rc1 {[%emt 0:00:48]} Bd6 {[%emt 0:00:19]} 17. Nxa8 {[%emt 0:00:11]} Qxa8 {[%emt 0:00:04]} 18. Nb3 {[%emt 0:08:05]} Re8 {[%emt 0:01:04]} 19. Re1 {[%emt 0:03:59]} Ne4 {[%emt 0:03:18]} 20. Bxe4 {[%emt 0:01:09]} Rxe4 {[%emt 0:00:08]} 21. Na5 {[%emt 0:05:42]} h6 {[%emt 0:03:33]} 22. Bxh6 {[%emt 0:00:58]} 1-0

[Event "Condigne Dutch Open 2018"]
[Site "Dieren"]
[Date "2018.07.30"]
[Round "6"]
[White "Van Roon, Sjoerd"]
[Black "Pols, Wiggert"]
[Result "1-0"]
[ECO "B32"]
[WhiteElo "2100"]
[BlackElo "2177"]
[Annotator "NA"]
[PlyCount "57"]
[EventDate "2018.07.24"]
[EventType "swiss"]
[EventCountry "NED"]
[SourceTitle "playchess.com"]
[Source "ChessBase"]
[SourceQuality "1"]
[TimeControl "40/5400+30:1800+30"]

1. e4 {[%emt 0:00:00]} c5 {[%emt 0:00:00]} 2. Nf3 {[%emt 0:00:00]} Nc6 {[%emt 0:00:00]} 3. d4 {[%emt 0:00:00]} cxd4 {[%emt 0:00:00]} 4. Nxd4 {[%emt 0:00:00]} e5 {[%emt 0:00:05]} 5. Nb5 {[%emt 0:00:00]} d6 {[%emt 0:00:03]} 6. N1c3 {[%emt 0:00:06]} a6 {[%emt 0:00:05]} 7. Na3 {[%emt 0:00:03]} b5 {[%emt 0:00:05]} 8. Nd5 {[%emt 0:00:08]} Nge7 {[%emt 0:00:16]} 9. c4 {[%emt 0:00:36]} Nxd5 {[%emt 0:00:06]} 10. exd5 {[%emt 0:00:36]} Nd4 {[%emt 0:00:05]} 11. cxb5 {[%emt 0:00:26]} g6 {[%emt 0:00:11]} 12. Be3 {[%emt 0:00:25]} Bg7 {[%emt 0:00:13]} 13. Bxd4 {[%emt 0:00:09]} exd4 {[%emt 0:00:08]} 14. Bd3 {[%emt 0:00:06]} O-O {[%emt 0:00:27]} 15. O-O {[%emt 0:00:11]} Bb7 {[%emt 0:07:03]} 16. bxa6 {[%emt 0:02:37]} Bxd5 {[%emt 0:01:40]} 17. b4 {[%emt 0:06:05]} Qg5 {[%emt 0:04:03]} 18. g3 {[%emt 0:02:13]} Rac8 {[%emt 0:12:10]} 19. b5 {[%emt 0:14:30]} Rc3 {[%emt 0:02:19]} 20. Nb1 {[%emt 0:01:27]} f5 {[%emt 0:13:58]} 21. Nxc3 {[%emt 0:15:32]} dxc3 {[%emt 0:00:12]} 22. Bc2 {[%emt 0:03:18]} Ba8 {[%emt 0:07:33]} 23. b6 {[%emt 0:10:18]} Bc6 {[%emt 0:00:32]} 24. Qxd6 {[%emt 0:01:52]} Bf3 {[%emt 0:07:17]} 25. b7 {[%emt 0:01:49]} Qg4 {[%emt 0:01:51]} 26. Bb3+ {[%emt 0:00:33]} Kh8 {[%emt 0:00:06]} 27. b8=Q {[%emt 0:00:14]} Qh3 {[%emt 0:00:21]} 28. Qdxf8+ {[%emt 0:00:07]} Bxf8 {[%emt 0:00:07]} 29. Qxf8# {[%emt 0:00:06]} 1-0

[Event "Condigne Dutch Open 2018"]
[Site "Dieren"]
[Date "2018.07.31"]
[Round "7"]
[White "Zwirs, Nico"]
[Black "Warmerdam, Max"]
[Result "1/2-1/2"]
[ECO "B54"]
[WhiteElo "2386"]
[BlackElo "2424"]
[Annotator "NA"]
[PlyCount "39"]
[EventDate "2018.07.24"]
[EventType "swiss"]
[EventCountry "NED"]
[SourceTitle "playchess.com"]
[Source "ChessBase"]
[SourceQuality "1"]
[TimeControl "40/5400+30:1800+30"]

{[%evp 12,35,21,32767,41,32767,32767,11,5,13,0,0,15,0,32767,81,87,89,87,89,94,7,20,14,18,0]} 1. e4 {[%emt 0:00:08]} c5 {[%emt 0:00:00]} 2. Nc3 {[%emt 0:00:18]} Nc6 {[%emt 0:00:00]} 3. Nf3 {[%emt 0:00:29]} d6 {[%emt 0:00:02]} 4. Bb5 {[%emt 0:00:09]} Bd7 {[%emt 0:07:50]} 5. Bxc6 {[%emt 0:00:08]} Bxc6 {[%emt 0:03:29]} 6. d4 {[%emt 0:00:07]} cxd4 {[%emt 0:02:00] LiveBook: 51 Games} 7. Nxd4 {[%emt 0:00:09]} Nf6 {[%emt 0:09:55] B54: Sizilianisch (Rauser Anti-Drachen-Variante)} 8. Qf3 {[%emt 0:00:58]} Nd7 $146 {[%emt 0:08:24]} ({Vorgänger:} 8... Bd7 9. Bg5 Ng4 10. O-O-O Rc8 11. Nd5 Ne5 12. Qe2 f6 13. Be3 e6 14. Nf4 Kf7 15. Kb1 {1-0 (84) Oreopoulos,K (2451)-Fischer,W (2491) ICCF email 2013}) 9. O-O {[%emt 1:32:04]} g6 {[%emt 0:01:06]} 10. Bg5 {[%emt 0:00:00]} Bg7 {[%emt 0:01:13]} 11. Rad1 {[%emt 0:00:00]} O-O {[%emt 0:06:39]} 12. Qh3 {[%emt 0:00:00]} Re8 {[%emt 0:02:50]} 13. Nxc6 {[%emt 0:00:00]} bxc6 {[%emt 0:00:03]} 14. Rxd6 $1 {[%emt 0:00:00]} Qa5 {[%emt 0:00:08]} 15. Rxd7 {[%emt 0:00:00]} Qxg5 {[%emt 0:00:37]} 16. Qd3 {[%emt 0:00:00]} (16. Na4 $16) 16... Qa5 $1 {[%emt 0:02:51]} 17. Qc4 {[%emt 0:00:00]} Rab8 {[%emt 0:03:03]} 18. Nd1 $11 {[%emt 0:00:00]} Bxb2 {[%emt 0:19:05]} 19. Nxb2 {[%emt 0:00:00]} Rxb2 {[%emt 0:00:05]} 20. Qxc6 {[%emt 0:00:00]} 1/2-1/2

[Event "Condigne Dutch Open 2018"]
[Site "Dieren"]
[Date "2018.07.31"]
[Round "7"]
[White "Miedema, David"]
[Black "Van Roon, Sjoerd"]
[Result "1-0"]
[ECO "B01"]
[WhiteElo "2370"]
[BlackElo "2100"]
[Annotator "NA"]
[PlyCount "69"]
[EventDate "2018.07.24"]
[EventType "swiss"]
[EventCountry "NED"]
[SourceTitle "playchess.com"]
[Source "ChessBase"]
[SourceQuality "1"]
[TimeControl "40/5400+30:1800+30"]

1. e4 {[%emt 0:00:00]} d5 {[%emt 0:00:00]} 2. exd5 {[%emt 0:00:00]} Qxd5 {[%emt 0:00:00]} 3. Nc3 {[%emt 0:00:00]} Qa5 {[%emt 0:00:00]} 4. Bc4 {[%emt 0:00:00]} Nf6 {[%emt 0:00:00]} 5. d3 {[%emt 0:00:00]} c6 {[%emt 0:04:36]} 6. Bd2 {[%emt 0:00:00]} Qc7 {[%emt 0:00:28]} 7. Qe2 {[%emt 0:01:30]} Bg4 {[%emt 0:02:02] B01: Scandinavian Defence} (7... Bf5 8. h3 h5 9. Nf3 Nbd7 10. O-O Nb6 11. Bb3 Nbd5 12. Nxd5 Nxd5 13. Nd4 Bd7 14. Bxd5 cxd5 15. c4 dxc4 16. dxc4 {½-½ (48) Efimenko,Z (2651)-Kryvoruchko,Y (2659) Kiev 2013}) 8. f3 {[%emt 0:00:07]} Bf5 {[%emt 0:00:34]} 9. g4 {[%emt 0:00:06]} Bg6 {[%emt 0:01:11]} 10. f4 {[%emt 0:00:40]} h5 {[%emt 0:03:14]} 11. f5 {[%emt 0:00:06]} Bh7 {[%emt 0:02:49]} 12. g5 {[%emt 0:00:05]} Nd5 {[%emt 0:02:02]} 13. Qe4 {[%emt 0:16:05]} e6 {[%emt 0:07:27]} (13... Nd7 $16) 14. g6 {[%emt 0:00:23]} ({Weaker is} 14. Bxd5 Bxf5 15. Qe3 cxd5 $17) 14... fxg6 {[%emt 0:03:32]} 15. fxg6 {[%emt 0:08:08]} Nxc3 {[%emt 1:09:35]} 16. Bxc3 {[%emt 0:03:02]} Bg8 $146 {[%emt 0:00:00]} 17. Bxe6 {[%emt 0:04:12]} Qe7 {[%emt 0:00:00]} 18. Bxg8 {[%emt 0:12:00]} Qxe4+ {[%emt 0:00:00]} 19. dxe4 {[%emt 0:00:04]} Rxg8 {[%emt 0:00:00]} 20. O-O-O {[%emt 0:11:14]} Nd7 {[%emt 0:00:00]} 21. Nh3 {[%emt 0:00:38]} O-O-O {[%emt 0:00:00]} 22. Nf4 {[%emt 0:06:20]} h4 {[%emt 0:00:00]} 23. e5 {[%emt 0:09:37]} Re8 {[%emt 0:00:00]} 24. Rde1 {[%emt 0:01:22]} Nc5 {[%emt 0:00:00]} 25. Rhg1 {[%emt 0:05:10]} Be7 {[%emt 0:00:00]} 26. Nh5 {[%emt 0:02:14]} Ne6 {[%emt 0:00:00]} 27. Nf6 {[%emt 0:00:13]} gxf6 {[%emt 0:00:00]} 28. exf6 {[%emt 0:01:07]} Bc5 {[%emt 0:00:00]} 29. Rg4 {[%emt 0:04:35]} Nf4 {[%emt 0:02:13]} 30. Rxe8+ {[%emt 0:00:38]} Rxe8 {[%emt 0:00:03]} 31. Rxf4 {[%emt 0:00:12]} Be3+ {[%emt 0:00:19]} 32. Bd2 {[%emt 0:00:04]} Bxf4 {[%emt 0:00:13]} 33. Bxf4 {[%emt 0:00:04]} Kd7 {[%emt 0:00:47]} 34. f7 {[%emt 0:00:14]} Kc8 {[%emt 0:00:35]} 35. fxe8=Q# {[%emt 0:00:07]} 1-0

[Event "Condigne Dutch Open 2018"]
[Site "Dieren"]
[Date "2018.07.31"]
[Round "7"]
[White "Geurink, Jasper"]
[Black "De Jong, Tom"]
[Result "1-0"]
[ECO "B31"]
[WhiteElo "2348"]
[BlackElo "2201"]
[Annotator "NA"]
[PlyCount "71"]
[EventDate "2018.07.24"]
[EventType "swiss"]
[EventCountry "NED"]
[SourceTitle "playchess.com"]
[Source "ChessBase"]
[SourceQuality "1"]
[TimeControl "40/5400+30:1800+30"]

1. e4 {[%emt 0:00:11]} c5 {[%emt 0:04:51]} 2. Nf3 {[%emt 0:00:53]} Nc6 {[%emt 0:00:25]} 3. Bb5 {[%emt 0:00:16]} g6 {[%emt 0:00:37]} 4. Bxc6 {[%emt 0:00:08]} dxc6 {[%emt 0:00:14]} 5. d3 {[%emt 0:00:06]} Bg7 {[%emt 0:00:11]} 6. Nc3 {[%emt 0:00:09]} Bg4 {[%emt 0:04:11] B31: Sizilianisch (Rossolimo-Variante)} (6... Nf6 7. h3 O-O 8. Be3 b6 9. Qd2 e5 10. Bh6 Qd6 11. O-O-O b5 12. Ne2 a5 13. Bxg7 Kxg7 14. h4 h5 15. Ng5 Ng4 16. Rdf1 f6 17. Nh3 Be6 {1-0 (46) Papp,G (2597)-Horvath,P (2424) Ajka 2018}) 7. h3 {[%emt 0:04:18]} Bxf3 {[%emt 0:00:07]} 8. Qxf3 {[%emt 0:00:05]} e6 {[%emt 0:12:10]} 9. Bd2 $146 {[%emt 0:02:20]} ({Vorgänger:} 9. O-O Ne7 10. Bg5 O-O 11. Bf6 Bxf6 12. Qxf6 Nc8 13. Qf4 f6 14. Qg4 {0-1 (45) Zenhom,T (2282)-Chahrani,I (2209) Tripoli 2017}) 9... Ne7 {[%emt 0:01:15]} 10. g4 {[%emt 0:03:59]} Qd7 {[%emt 0:14:44]} 11. Qe2 {[%emt 0:05:33]} O-O-O {[%emt 0:11:42]} 12. h4 {[%emt 0:02:00]} f5 {[%emt 0:03:03]} 13. O-O-O {[%emt 0:03:05]} h6 {[%emt 0:07:31]} 14. Kb1 {[%emt 0:01:59]} Rhf8 {[%emt 0:02:46]} 15. f3 {[%emt 0:00:47]} b6 {[%emt 0:02:48]} 16. Bc1 {[%emt 0:08:56]} Rf7 {[%emt 0:03:47]} 17. gxf5 {[%emt 0:00:54]} gxf5 {[%emt 0:01:59]} 18. Rhg1 {[%emt 0:03:01]} Rdf8 {[%emt 0:06:53] [#]} ({Besser ist} 18... Bd4 $14) 19. Rxg7 $1 {[%emt 0:02:27]} Rxg7 {[%emt 0:00:48]} 20. Bxh6 {[%emt 0:00:06]} Rfg8 $16 {[%emt 0:00:27]} 21. Bxg7 {[%emt 0:00:09]} Rxg7 {[%emt 0:00:03]} 22. h5 {[%emt 0:03:49]} Qd6 {[%emt 0:02:30]} 23. Rh1 {[%emt 0:03:12]} b5 {[%emt 0:02:58]} 24. a3 {[%emt 0:00:42]} b4 {[%emt 0:03:58]} 25. Na4 {[%emt 0:02:59]} c4 {[%emt 0:08:30]} 26. dxc4 {[%emt 0:04:23]} bxa3 {[%emt 0:00:20]} 27. Qd3 {[%emt 0:00:43]} Qb4 {[%emt 0:02:48]} 28. Qb3 {[%emt 0:00:24]} Qxb3 {[%emt 0:00:41]} 29. cxb3 {[%emt 0:00:05]} axb2 {[%emt 0:00:09]} 30. Nc5 {[%emt 0:00:07]} e5 {[%emt 0:00:51]} 31. Ne6 {[%emt 0:00:27]} Rg3 {[%emt 0:01:19]} 32. exf5 {[%emt 0:01:46]} Nxf5 {[%emt 0:00:45]} 33. h6 {[%emt 0:00:13]} Rg8 {[%emt 0:00:32]} 34. h7 {[%emt 0:00:16]} Rh8 {[%emt 0:00:02]} 35. Ng5 {[%emt 0:00:16]} Nd6 {[%emt 0:00:34]} 36. c5 {[%emt 0:00:06]} 1-0

[Event "Condigne Dutch Open 2018"]
[Site "Dieren"]
[Date "2018.07.31"]
[Round "7"]
[White "Wiersma, Eelke"]
[Black "Go, Benjamin"]
[Result "1-0"]
[ECO "B09"]
[WhiteElo "2346"]
[BlackElo "2162"]
[Annotator "NA"]
[PlyCount "59"]
[EventDate "2018.07.24"]
[EventType "swiss"]
[EventCountry "NED"]
[SourceTitle "playchess.com"]
[Source "ChessBase"]
[SourceQuality "1"]
[TimeControl "40/5400+30:1800+30"]

1. e4 {[%emt 0:00:00]} d6 {[%emt 0:00:00]} 2. d4 {[%emt 0:00:00]} Nf6 {[%emt 0:00:00]} 3. Nc3 {[%emt 0:00:00]} g6 {[%emt 0:00:00]} 4. f4 {[%emt 0:00:11]} Bg7 {[%emt 1:32:00]} 5. Bd3 {[%emt 1:32:19]} O-O {[%emt 0:00:00]} 6. Nf3 {[%emt 0:00:00]} Na6 {[%emt 0:00:00]} 7. O-O {[%emt 0:00:00]} c5 {[%emt 0:00:00]} 8. d5 {[%emt 0:00:00]} Nc7 {[%emt 0:00:00]} 9. a4 {[%emt 0:00:00]} Rb8 {[%emt 0:00:00]} 10. Bc4 {[%emt 0:00:00]} a6 {[%emt 0:00:00]} 11. a5 {[%emt 0:00:00]} Nd7 {[%emt 0:00:00]} 12. Qe1 {[%emt 0:00:00]} b5 {[%emt 0:00:00]} 13. axb6 {[%emt 0:00:00]} Nxb6 {[%emt 0:00:00]} 14. Bd3 {[%emt 0:00:00]} e6 {[%emt 0:00:00]} 15. dxe6 {[%emt 0:00:00]} Bxe6 {[%emt 0:00:00]} 16. f5 {[%emt 0:00:00]} Bc4 {[%emt 0:00:00]} 17. Qg3 {[%emt 0:00:00]} Re8 {[%emt 0:00:00]} 18. Bf4 $16 {[%emt 0:00:00]} Bf8 {[%emt 0:00:00]} 19. Ng5 {[%emt 0:00:00]} Nb5 {[%emt 0:00:00]} 20. fxg6 {[%emt 0:00:00]} fxg6 {[%emt 0:00:00]} 21. Bxc4+ {[%emt 0:00:00]} Nxc4 {[%emt 0:00:00]} 22. Qd3 {[%emt 0:00:00]} Nxc3 {[%emt 0:00:00]} 23. Qxc4+ {[%emt 0:00:00]} d5 {[%emt 0:00:00]} 24. Qxc3 {[%emt 0:00:00]} Bg7 {[%emt 0:00:00]} 25. Qh3 {[%emt 0:00:00]} Bd4+ {[%emt 0:00:00]} 26. Kh1 {[%emt 0:00:00]} Rb7 {[%emt 0:00:00]} 27. Ne6 {[%emt 0:00:00]} Qf6 {[%emt 0:00:00]} 28. exd5 {[%emt 0:00:00]} Rf7 {[%emt 0:00:00]} 29. c3 {[%emt 0:00:00]} Be5 {[%emt 0:00:00]} 30. Qd3 {[%emt 0:00:00]} 1-0

[Event "Condigne Dutch Open 2018"]
[Site "Dieren"]
[Date "2018.07.31"]
[Round "7"]
[White "Maris, Ivo"]
[Black "Ojas Kulkarni"]
[Result "1-0"]
[ECO "A00"]
[WhiteElo "2342"]
[BlackElo "2226"]
[Annotator "NA"]
[PlyCount "55"]
[EventDate "2018.07.24"]
[EventType "swiss"]
[EventCountry "NED"]
[SourceTitle "playchess.com"]
[Source "ChessBase"]
[SourceQuality "1"]
[TimeControl "40/5400+30:1800+30"]

1. b4 {[%emt 0:05:51]} e5 {[%emt 0:00:50]} 2. a3 {[%emt 0:00:54]} g6 {[%emt 0:03:06]} 3. Bb2 {[%emt 0:01:10]} Bg7 {[%emt 0:00:07]} 4. h4 {[%emt 0:00:23]} d6 {[%emt 0:01:27]} 5. h5 {[%emt 0:00:22]} Bg4 {[%emt 0:06:59]} 6. f3 {[%emt 0:02:21]} Bf6 {[%emt 0:00:20]} 7. g3 {[%emt 0:00:57]} e4 {[%emt 0:19:22]} 8. Bxf6 {[%emt 0:02:03]} (8. Nc3 $14 exf3 9. exf3) 8... Qxf6 {[%emt 0:00:15]} 9. Nc3 {[%emt 0:00:22]} e3 $2 {[%emt 0:02:22]} (9... exf3 $11 10. exf3 Be6) 10. Nd5 {[%emt 0:01:06]} exd2+ {[%emt 0:25:37]} 11. Kxd2 {[%emt 0:01:10]} Qe5 {[%emt 0:01:03]} 12. Nxc7+ {[%emt 0:01:32]} Kd7 {[%emt 0:00:05]} 13. Nxa8 {[%emt 0:00:08]} Nf6 {[%emt 0:00:06]} 14. Rb1 $18 {[%emt 0:04:15]} Rc8 {[%emt 0:27:51]} 15. Rb3 {[%emt 0:01:55]} Nc6 {[%emt 0:00:22]} 16. Rd3 {[%emt 0:03:06]} Nd4 {[%emt 0:00:25]} 17. c3 {[%emt 0:00:59]} Nb5 {[%emt 0:00:10]} 18. Qb3 {[%emt 0:01:35]} Be6 {[%emt 0:04:51]} 19. Bh3 {[%emt 0:02:55]} Ng4 {[%emt 0:00:08]} 20. Bxg4 {[%emt 0:00:05]} f5 {[%emt 0:00:04]} 21. f4 {[%emt 0:01:59]} Qe4 {[%emt 0:01:50]} 22. Qa4 {[%emt 0:01:42]} Qxh1 {[%emt 0:00:25]} 23. Qxb5+ {[%emt 0:00:04]} Ke7 {[%emt 0:00:05]} 24. Bf3 {[%emt 0:01:18]} Qxg1 {[%emt 0:00:21]} 25. Qxb7+ {[%emt 0:00:05]} Kf8 {[%emt 0:00:53]} 26. h6 {[%emt 0:01:13]} Rxc3 {[%emt 0:01:05]} 27. Qg7+ {[%emt 0:00:11]} Ke8 {[%emt 0:00:05]} 28. Rxc3 {[%emt 0:00:08]} 1-0

[Event "Condigne Dutch Open 2018"]
[Site "Dieren"]
[Date "2018.07.31"]
[Round "7"]
[White "Saravanan, V.."]
[Black "Sparenberg, Erik"]
[Result "0-1"]
[ECO "D45"]
[WhiteElo "2326"]
[BlackElo "2173"]
[Annotator "NA"]
[PlyCount "88"]
[EventDate "2018.07.24"]
[EventType "swiss"]
[EventCountry "NED"]
[SourceTitle "playchess.com"]
[Source "ChessBase"]
[SourceQuality "1"]
[TimeControl "40/5400+30:1800+30"]

1. d4 {[%emt 0:00:00]} d5 {[%emt 0:00:00]} 2. c4 {[%emt 0:00:00]} c6 {[%emt 0:00:06]} 3. Nf3 {[%emt 0:00:00]} Nf6 {[%emt 0:00:08]} 4. e3 {[%emt 0:00:00]} e6 {[%emt 0:00:05]} 5. Nc3 {[%emt 0:00:15]} Nbd7 {[%emt 0:00:07]} 6. Qc2 {[%emt 0:00:05]} a6 {[%emt 0:01:55]} 7. Bd3 {[%emt 0:05:40]} dxc4 {[%emt 0:00:29]} 8. Bxc4 {[%emt 0:00:06]} b5 {[%emt 0:00:08]} 9. Be2 {[%emt 0:01:19]} Bb7 {[%emt 0:00:37]} 10. a4 {[%emt 0:01:27]} b4 {[%emt 0:01:54]} 11. Ne4 {[%emt 0:00:10]} Rc8 {[%emt 0:11:40]} 12. O-O {[%emt 0:04:03]} c5 {[%emt 0:06:20]} 13. Nxf6+ {[%emt 0:00:30]} Nxf6 {[%emt 0:15:01]} 14. a5 {[%emt 0:01:25]} Be7 {[%emt 0:12:51]} 15. Qa4+ {[%emt 0:05:53]} Qd7 {[%emt 0:00:51]} 16. dxc5 {[%emt 0:00:20]} Rxc5 {[%emt 0:07:39]} 17. Qxd7+ {[%emt 0:18:00]} Nxd7 {[%emt 0:02:49]} 18. Bd2 {[%emt 0:00:10]} Rc2 $11 {[%emt 0:03:47]} 19. Rfd1 {[%emt 0:08:32]} Nc5 {[%emt 0:04:02]} 20. Nd4 {[%emt 0:05:36]} Rxd2 {[%emt 0:06:04]} 21. Rxd2 {[%emt 0:00:07]} e5 {[%emt 0:00:14]} 22. Nf5 {[%emt 0:03:57]} Nb3 {[%emt 0:01:05]} 23. Nxg7+ {[%emt 0:06:53]} Kf8 {[%emt 0:00:54]} 24. Rd7 {[%emt 0:00:06]} Bc8 {[%emt 0:03:47]} 25. Rad1 {[%emt 0:00:22]} Bxd7 {[%emt 0:03:03]} 26. Rxd7 {[%emt 0:00:07]} Kxg7 {[%emt 0:00:29]} 27. Rxe7 {[%emt 0:00:05]} Rc8 {[%emt 0:01:22]} 28. g3 {[%emt 0:01:59]} Nxa5 {[%emt 0:03:29]} 29. Rxe5 {[%emt 0:04:01]} Nc4 {[%emt 0:01:07]} 30. Re4 {[%emt 0:01:21]} Nxb2 {[%emt 0:00:53]} 31. Rxb4 {[%emt 0:00:20]} Rc1+ {[%emt 0:01:11]} 32. Kg2 {[%emt 0:00:09]} Rc2 {[%emt 0:00:05]} 33. Kf3 {[%emt 0:07:07]} a5 {[%emt 0:00:38]} 34. Rb7 {[%emt 0:01:28]} a4 {[%emt 0:00:40]} 35. Ra7 {[%emt 0:00:41]} Kf6 {[%emt 0:05:36]} 36. g4 {[%emt 0:02:02]} Ke6 {[%emt 0:02:34]} 37. g5 {[%emt 0:00:13]} Kd6 {[%emt 0:03:35]} 38. Rxf7 {[%emt 0:01:05]} Rc7 {[%emt 0:00:10]} 39. Rf6+ {[%emt 0:00:59]} Kc5 {[%emt 0:00:02]} 40. Ra6 {[%emt 0:01:49]} Kb4 {[%emt 0:00:09]} 41. h4 {[%emt 0:44:15]} a3 {[%emt 0:30:39]} 42. Ke4 {[%emt 0:00:00]} Na4 {[%emt 0:00:00]} 43. Ke5 {[%emt 0:00:00]} a2 {[%emt 0:00:00]} 44. Bd1 {[%emt 0:00:00]} a1=Q+ {[%emt 0:00:00]} 0-1

[Event "Condigne Dutch Open 2018"]
[Site "Dieren"]
[Date "2018.07.31"]
[Round "7"]
[White "Van Osch, Mees"]
[Black "Evengroen, Henk-Jan"]
[Result "1-0"]
[ECO "B07"]
[WhiteElo "2324"]
[BlackElo "2160"]
[Annotator "NA"]
[PlyCount "63"]
[EventDate "2018.07.24"]
[EventType "swiss"]
[EventCountry "NED"]
[SourceTitle "playchess.com"]
[Source "ChessBase"]
[SourceQuality "1"]
[TimeControl "40/5400+30:1800+30"]

1. d4 {[%emt 0:00:00]} Nf6 {[%emt 0:00:00]} 2. Bf4 {[%emt 0:00:00]} g6 {[%emt 0:00:00]} 3. Nc3 {[%emt 0:00:38]} Bg7 {[%emt 0:00:24]} 4. e4 {[%emt 0:00:36]} d6 {[%emt 0:00:22]} 5. Qd2 {[%emt 0:00:25]} O-O {[%emt 0:04:47]} 6. O-O-O {[%emt 0:00:13]} b5 {[%emt 0:03:04]} 7. Bxb5 {[%emt 0:01:17]} c5 {[%emt 0:00:27]} 8. dxc5 {[%emt 0:13:05]} Qa5 {[%emt 0:01:15]} 9. cxd6 {[%emt 0:01:19]} exd6 {[%emt 0:01:05]} 10. Bc4 {[%emt 0:09:50]} Na6 {[%emt 0:15:21]} 11. Bh6 {[%emt 0:04:36]} Bxh6 {[%emt 0:12:46]} 12. Qxh6 $18 {[%emt 0:00:39]} Qc5 {[%emt 0:03:47]} 13. Nd5 {[%emt 0:36:27]} Nxd5 {[%emt 0:01:41]} 14. Bxd5 {[%emt 0:00:14]} Rb8 {[%emt 0:10:26]} 15. Nf3 {[%emt 0:05:06]} Nb4 {[%emt 0:03:52]} 16. Rd2 {[%emt 0:01:42]} Nxd5 {[%emt 0:02:50]} 17. exd5 {[%emt 0:00:49]} f6 {[%emt 0:00:25]} 18. Re1 {[%emt 0:00:52]} Rb7 {[%emt 0:02:06]} 19. Nd4 {[%emt 0:01:32]} Qa5 {[%emt 0:03:26]} 20. Kb1 {[%emt 0:03:58]} Bg4 {[%emt 0:09:30]} 21. f3 {[%emt 0:04:21]} Bf5 {[%emt 0:12:36]} 22. b3 {[%emt 0:00:15]} Qxd5 {[%emt 0:03:49]} 23. Ne6 {[%emt 0:08:33]} Rxb3+ {[%emt 0:00:40]} 24. Ka1 {[%emt 0:00:26]} Rb1+ {[%emt 0:00:32]} 25. Rxb1 {[%emt 0:00:09]} Qxe6 {[%emt 0:00:21]} 26. Rb7 {[%emt 0:01:04]} Qe5+ {[%emt 0:00:45]} 27. Kb1 {[%emt 0:00:12]} Bd7 {[%emt 0:00:07]} 28. Qh4 {[%emt 0:01:40]} Re8 {[%emt 0:01:44]} 29. Qd4 {[%emt 0:00:33]} Qa5 {[%emt 0:00:19]} 30. Qb4 {[%emt 0:02:09]} Qf5 {[%emt 0:03:10]} 31. Rxd6 {[%emt 0:00:53]} Re2 {[%emt 0:00:47]} 32. Qc4+ {[%emt 0:00:37]} 1-0

[Event "Condigne Dutch Open 2018"]
[Site "Dieren"]
[Date "2018.07.31"]
[Round "7"]
[White "Van Meegen, Ruud"]
[Black "Anurag, Mhamal"]
[Result "0-1"]
[ECO "E92"]
[WhiteElo "2222"]
[BlackElo "2484"]
[Annotator "ChessBase"]
[PlyCount "64"]
[EventDate "2018.07.24"]
[EventType "swiss"]
[EventCountry "NED"]
[SourceTitle "playchess.com"]
[Source "ChessBase"]
[SourceQuality "1"]
[TimeControl "40/5400+30:1800+30"]

1. c4 {[%emt 0:00:00]} Nf6 {[%emt 0:00:09]} 2. Nf3 {[%emt 0:00:00]} g6 {[%emt 0:00:06]} 3. Nc3 {[%emt 0:00:00]} Bg7 {[%emt 0:00:04]} 4. e4 {[%emt 0:00:08]} d6 {[%emt 0:00:11]} 5. d4 {[%emt 0:00:07]} O-O {[%emt 0:00:06]} 6. Be2 {[%emt 0:00:10]} e5 {[%emt 0:00:05]} 7. d5 {[%emt 0:00:04]} a5 {[%emt 0:00:39]} 8. Bg5 {[%emt 0:00:07]} h6 {[%emt 0:00:58]} 9. Bh4 {[%emt 0:00:10]} Na6 {[%emt 0:00:18]} 10. Nd2 {[%emt 0:00:08]} Qe8 {[%emt 0:00:55]} 11. a3 {[%emt 0:00:20]} Bd7 {[%emt 0:00:41]} 12. b3 {[%emt 0:00:10]} Nh7 {[%emt 0:01:27]} 13. O-O {[%emt 0:00:19]} h5 {[%emt 0:00:07]} 14. f3 {[%emt 0:00:13]} Bh6 {[%emt 0:00:04]} 15. Rb1 {[%emt 0:00:09]} Be3+ {[%emt 0:02:09]} 16. Kh1 {[%emt 0:00:08]} Bc5 {[%emt 0:00:03]} 17. Qc1 {[%emt 0:00:09]} Kg7 {[%emt 0:24:51]} 18. Na2 {[%emt 0:02:13]} f5 {[%emt 0:08:27]} 19. b4 {[%emt 0:03:12]} Be3 {[%emt 0:00:12]} 20. exf5 {[%emt 0:06:07]} g5 {[%emt 0:00:07]} 21. Be1 {[%emt 0:00:50]} Bxf5 {[%emt 0:00:27]} 22. Rb3 {[%emt 0:01:09]} Bd4 {[%emt 0:01:30]} 23. Nc3 {[%emt 0:02:08]} a4 {[%emt 0:11:40]} 24. Rb2 {[%emt 0:00:48]} Qg6 {[%emt 0:00:04]} 25. Nde4 {[%emt 0:15:52]} Bxe4 {[%emt 0:03:53]} 26. fxe4 {[%emt 0:01:17]} Rxf1+ {[%emt 0:04:59]} 27. Bxf1 {[%emt 0:00:04]} Rf8 {[%emt 0:00:48]} 28. Bd3 {[%emt 0:00:08]} Nf6 {[%emt 0:00:18]} 29. Rb1 {[%emt 0:24:15]} Ng4 {[%emt 0:05:04]} 30. Nb5 {[%emt 0:12:24]} Be3 {[%emt 0:04:01]} 31. Qd1 {[%emt 0:00:12]} Rf2 {[%emt 0:01:45]} 32. Nc3 {[%emt 0:10:06]} Qf6 {[%emt 0:00:50]} 0-1